[Event "Late-Titled-Tuesday-Blitz-April-23-2024"]
[Site "Chess.com"]
[Date "2024.04.23"]
[Round "11"]
[White "Fandorine"]
[Black "Zura_19"]
[Result "1-0"]
[WhiteElo "2919"]
[BlackElo "2625"]
[TimeControl "180+1"]
[EndTime "16:08:26 PDT"]
[Termination "Fandorine won on time"]

1. e4 {[%clk 0:03:00.9]} 1... c6 {[%clk 0:02:57.4]} 2. d4 {[%clk 0:02:59.7]}
2... d5 {[%clk 0:02:53.8]} 3. exd5 {[%clk 0:03:00.6]} 3... cxd5 {[%clk
0:02:53.8]} 4. Bd3 {[%clk 0:03:01]} 4... Nc6 {[%clk 0:02:53.6]} 5. c3 {[%clk
0:03:01.6]} 5... Nf6 {[%clk 0:02:54.1]} 6. h3 {[%clk 0:03:01]} 6... g6 {[%clk
0:02:49.7]} 7. Qc2 {[%clk 0:03:00.4]} 7... Bg7 {[%clk 0:02:49.1]} 8. Nf3 {[%clk
0:02:58.1]} 8... O-O {[%clk 0:02:47.3]} 9. O-O {[%clk 0:02:58.6]} 9... Nd7
{[%clk 0:02:39.1]} 10. Bf4 {[%clk 0:02:55.9]} 10... f6 {[%clk 0:02:04.6]} 11.
Qb3 {[%clk 0:02:38.5]} 11... Nb6 {[%clk 0:02:04.6]} 12. Nbd2 {[%clk 0:02:18]}
12... e5 {[%clk 0:01:53.8]} 13. dxe5 {[%clk 0:02:15.9]} 13... fxe5 {[%clk
0:01:54.3]} 14. Be3 {[%clk 0:02:10]} 14... Kh8 {[%clk 0:01:49.4]} 15. Bb5 {[%clk
0:02:03.3]} 15... e4 {[%clk 0:01:21.2]} 16. Nh2 {[%clk 0:01:48]} 16... Ne5
{[%clk 0:01:18.6]} 17. f4 {[%clk 0:01:41.8]} 17... Nf7 {[%clk 0:01:03.3]} 18.
Rad1 {[%clk 0:01:40.1]} 18... Nd6 {[%clk 0:01:02.9]} 19. Ng4 {[%clk 0:01:22.9]}
19... Nf5 {[%clk 0:01:02]} 20. Bc5 {[%clk 0:01:19.8]} 20... Rg8 {[%clk
0:00:47.7]} 21. Nxe4 {[%clk 0:01:07.1]} 21... Qc7 {[%clk 0:00:41.4]} 22. Bxb6
{[%clk 0:00:55.7]} 22... Qxb6+ {[%clk 0:00:41.2]} 23. Nef2 {[%clk 0:00:56.2]}
23... h5 {[%clk 0:00:34]} 24. Ne5 {[%clk 0:00:53.8]} 24... Ne3 {[%clk
0:00:31.4]} 25. Nf7+ {[%clk 0:00:39.8]} 25... Kh7 {[%clk 0:00:31.5]} 26. Ng5+
{[%clk 0:00:40.5]} 26... Kh8 {[%clk 0:00:31.9]} 27. Rxd5 {[%clk 0:00:40.4]}
27... Nxd5 {[%clk 0:00:20.3]} 28. Qxd5 {[%clk 0:00:38.8]} 28... Bf5 {[%clk
0:00:19.5]} 29. Kh1 {[%clk 0:00:31.3]} 29... Rad8 {[%clk 0:00:17.6]} 30. Nf7+
{[%clk 0:00:28.3]} 30... Kh7 {[%clk 0:00:18.2]} 31. Ng5+ {[%clk 0:00:18.9]}
31... Kh8 {[%clk 0:00:17.4]} 32. Qb3 {[%clk 0:00:19.4]} 32... a6 {[%clk
0:00:16.1]} 33. Bc4 {[%clk 0:00:11.5]} 33... Qxb3 {[%clk 0:00:15.5]} 34. axb3
{[%clk 0:00:11.7]} 34... Rgf8 {[%clk 0:00:10.7]} 35. Nf7+ {[%clk 0:00:10.9]}
35... Rxf7 {[%clk 0:00:10.8]} 36. Bxf7 {[%clk 0:00:11.7]} 36... Rd2 {[%clk
0:00:11.3]} 37. g4 {[%clk 0:00:12.1]} 37... Bd7 {[%clk 0:00:09.3]} 38. Bxg6
{[%clk 0:00:10]} 38... Bc6+ {[%clk 0:00:09.6]} 39. Be4 {[%clk 0:00:05.2]} 39...
Rxb2 {[%clk 0:00:04.8]} 40. Bxc6 {[%clk 0:00:04.4]} 40... bxc6 {[%clk
0:00:05.7]} 41. Ne4 {[%clk 0:00:04.3]} 41... Rxb3 {[%clk 0:00:05.4]} 42. Kg2
{[%clk 0:00:04.7]} 42... hxg4 {[%clk 0:00:04.7]} 43. hxg4 {[%clk 0:00:04.5]}
43... Bxc3 {[%clk 0:00:05.3]} 44. Rf3 {[%clk 0:00:03.7]} 44... Rb2+ {[%clk
0:00:05.7]} 45. Kh3 {[%clk 0:00:04.1]} 45... Be1 {[%clk 0:00:05.6]} 46. g5
{[%clk 0:00:04.3]} 46... a5 {[%clk 0:00:03.3]} 47. Kg4 {[%clk 0:00:04.6]} 47...
a4 {[%clk 0:00:03.5]} 48. Kf5 {[%clk 0:00:03.9]} 48... Rb3 {[%clk 0:00:04]} 49.
Rf1 {[%clk 0:00:03.5]} 49... Bb4 {[%clk 0:00:02.9]} 50. Kg6 {[%clk 0:00:02.7]}
50... a3 {[%clk 0:00:02.5]} 51. Nf6 {[%clk 0:00:02.4]} 51... Rh3 {[%clk
0:00:01.1]} 52. Rd1 {[%clk 0:00:02.5]} 1-0

[Event "Late-Titled-Tuesday-Blitz-April-23-2024"]
[Site "Chess.com"]
[Date "2024.04.23"]
[Round "11"]
[White "gorgeous1083"]
[Black "mjelcic"]
[Result "0-1"]
[WhiteElo "2114"]
[BlackElo "2376"]
[TimeControl "180+1"]
[EndTime "16:08:29 PDT"]
[Termination "mjelcic won by resignation"]

1. d4 {[%clk 0:03:00.9]} 1... e6 {[%clk 0:02:49.7]} 2. c4 {[%clk 0:03:01.2]}
2... Bb4+ {[%clk 0:02:49.1]} 3. Bd2 {[%clk 0:02:59.9]} 3... Be7 {[%clk
0:02:46.6]} 4. Nf3 {[%clk 0:02:59.8]} 4... Nf6 {[%clk 0:02:46.4]} 5. g3 {[%clk
0:03:00.4]} 5... O-O {[%clk 0:02:46.4]} 6. Bg2 {[%clk 0:03:01]} 6... c5 {[%clk
0:02:43.5]} 7. e3 {[%clk 0:02:58]} 7... d5 {[%clk 0:02:43.1]} 8. cxd5 {[%clk
0:02:56.1]} 8... exd5 {[%clk 0:02:42.6]} 9. O-O {[%clk 0:02:56.2]} 9... Nc6
{[%clk 0:02:42.6]} 10. Bc3 {[%clk 0:02:55.2]} 10... Bg4 {[%clk 0:02:35.2]} 11.
dxc5 {[%clk 0:02:42]} 11... Bxc5 {[%clk 0:02:33.8]} 12. Nbd2 {[%clk 0:02:41.6]}
12... Ne4 {[%clk 0:02:32.5]} 13. Qc2 {[%clk 0:02:40.4]} 13... Nxc3 {[%clk
0:02:27.6]} 14. Qxc3 {[%clk 0:02:40.3]} 14... Bb4 {[%clk 0:02:23.7]} 15. Qc2
{[%clk 0:02:32.4]} 15... d4 {[%clk 0:02:21.6]} 16. exd4 {[%clk 0:02:28.3]} 16...
Nxd4 {[%clk 0:02:21.8]} 17. Nxd4 {[%clk 0:02:28]} 17... Qxd4 {[%clk 0:02:22.7]}
18. Nf3 {[%clk 0:02:26]} 18... Qf6 {[%clk 0:02:18.3]} 19. a3 {[%clk 0:02:24.3]}
19... Ba5 {[%clk 0:01:56.8]} 20. Qb3 {[%clk 0:02:19.5]} 20... Bb6 {[%clk
0:01:53.8]} 21. Rac1 {[%clk 0:02:12.9]} 21... Rad8 {[%clk 0:01:53.3]} 22. Qc3
{[%clk 0:02:07.9]} 22... Qf5 {[%clk 0:01:46.1]} 23. Qc2 {[%clk 0:02:01.1]} 23...
Qh5 {[%clk 0:01:39.7]} 24. Qe4 {[%clk 0:01:50.9]} 24... Rd7 {[%clk 0:01:23.9]}
25. Ne5 {[%clk 0:01:38]} 25... Re7 {[%clk 0:01:20.3]} 26. Qxg4 {[%clk
0:01:35.2]} 26... Rxe5 {[%clk 0:01:19]} 27. Qxh5 {[%clk 0:01:33.9]} 27... Rxh5
{[%clk 0:01:19.2]} 28. Bxb7 {[%clk 0:01:34.5]} 28... Rb5 {[%clk 0:01:17.1]} 29.
Rc2 {[%clk 0:01:27]} 29... Bd4 {[%clk 0:01:13.6]} 30. Bc6 {[%clk 0:01:12.8]}
30... Rxb2 {[%clk 0:01:12.1]} 31. Rxb2 {[%clk 0:01:12.8]} 31... Bxb2 {[%clk
0:01:12.4]} 32. a4 {[%clk 0:01:12]} 32... Rc8 {[%clk 0:01:09.7]} 33. Bb5 {[%clk
0:01:11.1]} 33... Bd4 {[%clk 0:01:07.8]} 34. Rd1 {[%clk 0:01:09.4]} 34... Bb6
{[%clk 0:01:06]} 35. Rd2 {[%clk 0:01:05.2]} 35... g6 {[%clk 0:01:04.1]} 36. Kg2
{[%clk 0:01:05.3]} 36... Kg7 {[%clk 0:01:02.8]} 37. h4 {[%clk 0:01:04.6]} 37...
h6 {[%clk 0:01:01.4]} 38. Rb2 {[%clk 0:01:04.3]} 38... Rc3 {[%clk 0:01:00.2]}
39. Re2 {[%clk 0:01:04.3]} 39... Kf6 {[%clk 0:00:59.9]} 40. Rd2 {[%clk
0:01:01.2]} 40... Bc5 {[%clk 0:00:56.8]} 41. Re2 {[%clk 0:00:57]} 41... g5
{[%clk 0:00:56]} 42. hxg5+ {[%clk 0:00:56.5]} 42... hxg5 {[%clk 0:00:56.1]} 43.
Rd2 {[%clk 0:00:52.3]} 43... Kg6 {[%clk 0:00:55.1]} 44. Bd3+ {[%clk 0:00:51.5]}
44... Kg7 {[%clk 0:00:54.4]} 45. Be4 {[%clk 0:00:49.7]} 45... Rc4 {[%clk
0:00:52.1]} 46. Bc2 {[%clk 0:00:47.5]} 46... Bb4 {[%clk 0:00:47.4]} 47. Re2
{[%clk 0:00:46.9]} 47... Bc5 {[%clk 0:00:44]} 48. Bb3 {[%clk 0:00:46.3]} 48...
Rc3 {[%clk 0:00:42.1]} 49. Bc2 {[%clk 0:00:45.1]} 49... a5 {[%clk 0:00:40.8]}
50. Be4 {[%clk 0:00:42.2]} 50... Kf6 {[%clk 0:00:32.9]} 51. Bc6 {[%clk
0:00:40.2]} 51... Bxf2 {[%clk 0:00:30.2]} 52. Rxf2+ {[%clk 0:00:39.8]} 52... Ke5
{[%clk 0:00:29.9]} 53. Bb5 {[%clk 0:00:38.8]} 53... f5 {[%clk 0:00:29.9]} 54.
Bd7 {[%clk 0:00:34]} 54... f4 {[%clk 0:00:27.5]} 55. g4 {[%clk 0:00:33.6]} 55...
Rg3+ {[%clk 0:00:26.6]} 56. Kh2 {[%clk 0:00:32.3]} 56... Rd3 {[%clk 0:00:26.8]}
57. Kg2 {[%clk 0:00:32.4]} 57... Rxd7 {[%clk 0:00:26.2]} 58. Rb2 {[%clk
0:00:30.7]} 58... Rd5 {[%clk 0:00:20.2]} 59. Kf3 {[%clk 0:00:30.3]} 59... Rc5
{[%clk 0:00:17.6]} 60. Rb3 {[%clk 0:00:30.4]} 60... Kd5 {[%clk 0:00:17.7]} 61.
Ra3 {[%clk 0:00:24.5]} 61... Kd4 {[%clk 0:00:16.2]} 62. Rb3 {[%clk 0:00:22.2]}
62... Rc3+ {[%clk 0:00:16.2]} 63. Rxc3 {[%clk 0:00:21]} 63... Kxc3 {[%clk
0:00:17.1]} 64. Ke2 {[%clk 0:00:19.6]} 64... Kb4 {[%clk 0:00:16.7]} 65. Kd3
{[%clk 0:00:20]} 65... Kxa4 {[%clk 0:00:16.8]} 0-1

[Event "Late-Titled-Tuesday-Blitz-April-23-2024"]
[Site "Chess.com"]
[Date "2024.04.23"]
[Round "11"]
[White "vi_pranav"]
[Black "Nimrod_Veinberg"]
[Result "0-1"]
[WhiteElo "3053"]
[BlackElo "2836"]
[TimeControl "180+1"]
[EndTime "16:08:30 PDT"]
[Termination "Nimrod_Veinberg won by resignation"]

1. e4 {[%clk 0:03:00.9]} 1... c5 {[%clk 0:02:59.9]} 2. Nf3 {[%clk 0:03:01.2]}
2... e6 {[%clk 0:03:00.1]} 3. d4 {[%clk 0:03:00.6]} 3... cxd4 {[%clk 0:03:01]}
4. Nxd4 {[%clk 0:03:01.2]} 4... a6 {[%clk 0:03:01.6]} 5. c4 {[%clk 0:03:01]}
5... Nf6 {[%clk 0:03:01.9]} 6. Nc3 {[%clk 0:03:01.2]} 6... Bb4 {[%clk
0:03:02.5]} 7. Qd3 {[%clk 0:03:01.3]} 7... d6 {[%clk 0:03:03.1]} 8. Bd2 {[%clk
0:03:00]} 8... O-O {[%clk 0:02:53.6]} 9. Be2 {[%clk 0:02:59.8]} 9... Nc6 {[%clk
0:02:49.4]} 10. Nxc6 {[%clk 0:02:58.7]} 10... bxc6 {[%clk 0:02:49]} 11. O-O
{[%clk 0:02:59.6]} 11... e5 {[%clk 0:02:47.8]} 12. Rad1 {[%clk 0:02:57.2]} 12...
Be6 {[%clk 0:02:39.6]} 13. a3 {[%clk 0:02:52.7]} 13... Bc5 {[%clk 0:02:38.1]}
14. Na4 {[%clk 0:02:51.9]} 14... Bd4 {[%clk 0:02:37.7]} 15. Be3 {[%clk 0:02:47]}
15... c5 {[%clk 0:02:37.5]} 16. Nc3 {[%clk 0:02:33.4]} 16... Rb8 {[%clk
0:02:18]} 17. Qd2 {[%clk 0:02:25.9]} 17... Qb6 {[%clk 0:01:53.6]} 18. Rb1 {[%clk
0:02:06.5]} 18... Qb3 {[%clk 0:01:44.9]} 19. Rfc1 {[%clk 0:02:05.1]} 19... Rfc8
{[%clk 0:01:15.6]} 20. Bd1 {[%clk 0:01:57.3]} 20... Qb7 {[%clk 0:01:15]} 21. Bf3
{[%clk 0:01:40.5]} 21... Bxc4 {[%clk 0:01:01.8]} 22. Bg5 {[%clk 0:01:40.6]}
22... Nd7 {[%clk 0:00:53.5]} 23. Be7 {[%clk 0:01:38.5]} 23... Qc7 {[%clk
0:00:46.9]} 24. b4 {[%clk 0:01:32.8]} 24... Nb6 {[%clk 0:00:41.1]} 25. Bg5
{[%clk 0:01:28.2]} 25... cxb4 {[%clk 0:00:32.8]} 26. axb4 {[%clk 0:01:27.5]}
26... Qd7 {[%clk 0:00:29.5]} 27. h3 {[%clk 0:01:26.5]} 27... Be6 {[%clk
0:00:29]} 28. Ne2 {[%clk 0:01:25.4]} 28... Nc4 {[%clk 0:00:27]} 29. Qe1 {[%clk
0:01:25.1]} 29... Bb6 {[%clk 0:00:23]} 30. Rd1 {[%clk 0:01:24.5]} 30... h6
{[%clk 0:00:15.7]} 31. Bc1 {[%clk 0:01:24.1]} 31... a5 {[%clk 0:00:15]} 32. Qf1
{[%clk 0:01:06.9]} 32... a4 {[%clk 0:00:15]} 33. Nc3 {[%clk 0:01:03.8]} 33...
Bd4 {[%clk 0:00:15.1]} 34. Ne2 {[%clk 0:00:59.4]} 34... Bb6 {[%clk 0:00:14.8]}
35. Nc3 {[%clk 0:00:58.6]} 35... a3 {[%clk 0:00:15.3]} 36. Nd5 {[%clk
0:00:48.4]} 36... Bxd5 {[%clk 0:00:13.2]} 37. exd5 {[%clk 0:00:49.3]} 37... Bd4
{[%clk 0:00:12.1]} 38. Qe2 {[%clk 0:00:49.3]} 38... Qa7 {[%clk 0:00:10.8]} 39.
Bxh6 {[%clk 0:00:37.2]} 39... gxh6 {[%clk 0:00:09.5]} 40. Be4 {[%clk 0:00:37.4]}
40... f5 {[%clk 0:00:08.3]} 41. Bxf5 {[%clk 0:00:34.6]} 41... Rf8 {[%clk
0:00:08.3]} 42. Be6+ {[%clk 0:00:34.8]} 42... Kh8 {[%clk 0:00:08.3]} 43. Qxc4
{[%clk 0:00:35.6]} 43... Rxf2 {[%clk 0:00:08.6]} 44. Kh1 {[%clk 0:00:35.3]}
44... Qg7 {[%clk 0:00:08.4]} 45. Rg1 {[%clk 0:00:29.8]} 45... a2 {[%clk
0:00:08.4]} 46. Rbd1 {[%clk 0:00:18.5]} 46... a1=Q {[%clk 0:00:08.6]} 47. Rxa1
{[%clk 0:00:16.3]} 47... Bxa1 {[%clk 0:00:09.5]} 48. Qc6 {[%clk 0:00:15.9]}
48... Bd4 {[%clk 0:00:08.8]} 49. Qxd6 {[%clk 0:00:15.9]} 49... Rbf8 {[%clk
0:00:09.4]} 50. Bg4 {[%clk 0:00:15.1]} 50... e4 {[%clk 0:00:08.6]} 51. Qa6
{[%clk 0:00:09]} 51... e3 {[%clk 0:00:08.3]} 52. Qd3 {[%clk 0:00:08.5]} 52...
Qe5 {[%clk 0:00:05.2]} 53. Qg6 {[%clk 0:00:08.1]} 53... Qg5 {[%clk 0:00:04.3]}
54. Qd6 {[%clk 0:00:07.9]} 54... e2 {[%clk 0:00:04]} 55. Bxe2 {[%clk 0:00:07.6]}
55... Be5 {[%clk 0:00:04.4]} 56. Qc5 {[%clk 0:00:07.5]} 56... Qf4 {[%clk
0:00:04.8]} 57. g3 {[%clk 0:00:04.1]} 57... Qe4+ {[%clk 0:00:04.9]} 0-1

[Event "Late-Titled-Tuesday-Blitz-April-23-2024"]
[Site "Chess.com"]
[Date "2024.04.23"]
[Round "11"]
[White "ReadySkate"]
[Black "HajiyevKanan"]
[Result "1/2-1/2"]
[WhiteElo "2707"]
[BlackElo "2618"]
[TimeControl "180+1"]
[EndTime "16:08:41 PDT"]
[Termination "Game drawn by stalemate"]

1. d4 {[%clk 0:03:00.9]} 1... d5 {[%clk 0:02:57.6]} 2. c4 {[%clk 0:03:01.4]}
2... c6 {[%clk 0:02:57.8]} 3. Nf3 {[%clk 0:03:01.1]} 3... Nf6 {[%clk 0:02:58.3]}
4. Nc3 {[%clk 0:03:01.6]} 4... a6 {[%clk 0:02:58.6]} 5. e3 {[%clk 0:03:01.7]}
5... Bg4 {[%clk 0:02:57.7]} 6. h3 {[%clk 0:03:00.6]} 6... Bxf3 {[%clk
0:02:56.5]} 7. Qxf3 {[%clk 0:03:01.5]} 7... e6 {[%clk 0:02:57.4]} 8. Bd3 {[%clk
0:03:00.2]} 8... Bb4 {[%clk 0:02:57.4]} 9. O-O {[%clk 0:03:00.3]} 9... O-O
{[%clk 0:02:57.7]} 10. a3 {[%clk 0:03:00.1]} 10... Bd6 {[%clk 0:02:46.7]} 11. e4
{[%clk 0:02:55.6]} 11... dxe4 {[%clk 0:02:46.3]} 12. Nxe4 {[%clk 0:02:56.5]}
12... Nxe4 {[%clk 0:02:42.4]} 13. Qxe4 {[%clk 0:02:56.4]} 13... g6 {[%clk
0:02:41.3]} 14. Bh6 {[%clk 0:02:55.6]} 14... Re8 {[%clk 0:02:41]} 15. Rad1
{[%clk 0:02:55]} 15... Nd7 {[%clk 0:02:39.3]} 16. Qf3 {[%clk 0:02:53.6]} 16...
Qf6 {[%clk 0:02:39.1]} 17. Qg4 {[%clk 0:02:51.1]} 17... Bf8 {[%clk 0:02:29.7]}
18. Bg5 {[%clk 0:02:45.8]} 18... Qg7 {[%clk 0:02:29.6]} 19. Rfe1 {[%clk
0:02:44.3]} 19... Be7 {[%clk 0:02:26.4]} 20. Bxe7 {[%clk 0:02:36.4]} 20... Rxe7
{[%clk 0:02:26.2]} 21. d5 {[%clk 0:02:31.1]} 21... cxd5 {[%clk 0:02:27.1]} 22.
cxd5 {[%clk 0:02:25.7]} 22... Nf6 {[%clk 0:02:27]} 23. Qh4 {[%clk 0:02:23.1]}
23... Nxd5 {[%clk 0:02:14.2]} 24. Bxa6 {[%clk 0:02:19.2]} 24... bxa6 {[%clk
0:01:57.9]} 25. Rxd5 {[%clk 0:02:17.1]} 25... Rb7 {[%clk 0:01:55]} 26. Rd8+
{[%clk 0:02:02.1]} 26... Rxd8 {[%clk 0:01:52.6]} 27. Qxd8+ {[%clk 0:02:03]}
27... Qf8 {[%clk 0:01:53.5]} 28. Qd2 {[%clk 0:02:03.4]} 28... Rb3 {[%clk
0:01:38.6]} 29. Re3 {[%clk 0:01:57.1]} 29... Rb8 {[%clk 0:01:26.1]} 30. b4
{[%clk 0:01:54.9]} 30... Qg7 {[%clk 0:01:19.4]} 31. Rd3 {[%clk 0:01:52.9]} 31...
Qa1+ {[%clk 0:01:18.5]} 32. Kh2 {[%clk 0:01:52]} 32... Qe5+ {[%clk 0:01:18.6]}
33. g3 {[%clk 0:01:48.6]} 33... Kg7 {[%clk 0:01:12.2]} 34. Re3 {[%clk
0:01:41.7]} 34... Qf6 {[%clk 0:01:11.4]} 35. Kg2 {[%clk 0:01:38.2]} 35... Rd8
{[%clk 0:00:59.5]} 36. Qc2 {[%clk 0:01:31]} 36... Qd4 {[%clk 0:00:54]} 37. Qc7
{[%clk 0:01:25.3]} 37... Rd7 {[%clk 0:00:50.2]} 38. Qe5+ {[%clk 0:01:15]} 38...
Qxe5 {[%clk 0:00:47.7]} 39. Rxe5 {[%clk 0:01:15.9]} 39... Rd6 {[%clk 0:00:42.3]}
40. Ra5 {[%clk 0:01:15.1]} 40... Kf6 {[%clk 0:00:42.6]} 41. Kf3 {[%clk
0:01:15.5]} 41... e5 {[%clk 0:00:42.7]} 42. Ke3 {[%clk 0:00:59.3]} 42... Ke6
{[%clk 0:00:42.3]} 43. g4 {[%clk 0:00:59.5]} 43... f5 {[%clk 0:00:41.1]} 44.
gxf5+ {[%clk 0:00:56.8]} 44... gxf5 {[%clk 0:00:42]} 45. f4 {[%clk 0:00:55.9]}
45... e4 {[%clk 0:00:41.7]} 46. Ke2 {[%clk 0:00:52.4]} 46... h5 {[%clk
0:00:41.2]} 47. a4 {[%clk 0:00:50.7]} 47... h4 {[%clk 0:00:38]} 48. Rc5 {[%clk
0:00:41.4]} 48... Rd4 {[%clk 0:00:34.2]} 49. Rc6+ {[%clk 0:00:39.5]} 49... Kd5
{[%clk 0:00:29.2]} 50. Rxa6 {[%clk 0:00:35.4]} 50... Rxb4 {[%clk 0:00:29]} 51.
Ra5+ {[%clk 0:00:30.9]} 51... Kd4 {[%clk 0:00:23.6]} 52. Rxf5 {[%clk 0:00:30.6]}
52... Rxa4 {[%clk 0:00:24.1]} 53. Rf8 {[%clk 0:00:29.9]} 53... Ra2+ {[%clk
0:00:24.3]} 54. Kf1 {[%clk 0:00:30]} 54... Rh2 {[%clk 0:00:22.6]} 55. f5 {[%clk
0:00:21.5]} 55... Ke5 {[%clk 0:00:23.5]} 56. f6 {[%clk 0:00:20.4]} 56... Ke6
{[%clk 0:00:22.7]} 57. Re8+ {[%clk 0:00:17.6]} 57... Kxf6 {[%clk 0:00:21.5]} 58.
Rxe4 {[%clk 0:00:17.1]} 58... Rxh3 {[%clk 0:00:20.9]} 59. Kg2 {[%clk 0:00:17.7]}
59... Rg3+ {[%clk 0:00:18.6]} 60. Kh2 {[%clk 0:00:17.5]} 60... Kg5 {[%clk
0:00:15.7]} 61. Re5+ {[%clk 0:00:17.5]} 61... Kg4 {[%clk 0:00:16.1]} 62. Re4+
{[%clk 0:00:17.4]} 62... Kg5 {[%clk 0:00:16.4]} 63. Re5+ {[%clk 0:00:17.5]}
63... Kh6 {[%clk 0:00:16.4]} 64. Re4 {[%clk 0:00:17.4]} 64... Kh5 {[%clk
0:00:15.2]} 65. Re5+ {[%clk 0:00:17.9]} 65... Rg5 {[%clk 0:00:14.6]} 66. Rxg5+
{[%clk 0:00:17.5]} 66... Kxg5 {[%clk 0:00:15.5]} 67. Kh3 {[%clk 0:00:18.3]}
67... Kh5 {[%clk 0:00:16.1]} 68. Kh2 {[%clk 0:00:19.2]} 68... Kg4 {[%clk
0:00:16.2]} 69. Kg2 {[%clk 0:00:20.1]} 69... h3+ {[%clk 0:00:17]} 70. Kh1 {[%clk
0:00:21]} 70... Kh4 {[%clk 0:00:17.9]} 71. Kg1 {[%clk 0:00:21.9]} 71... Kg3
{[%clk 0:00:18.8]} 72. Kh1 {[%clk 0:00:22.8]} 72... h2 {[%clk 0:00:19.7]}
1/2-1/2

[Event "Late-Titled-Tuesday-Blitz-April-23-2024"]
[Site "Chess.com"]
[Date "2024.04.23"]
[Round "11"]
[White "aranibos"]
[Black "PapaieDudu"]
[Result "1-0"]
[WhiteElo "2279"]
[BlackElo "2428"]
[TimeControl "180+1"]
[EndTime "16:08:44 PDT"]
[Termination "aranibos won by checkmate"]

1. d4 {[%clk 0:02:59.2]} 1... d5 {[%clk 0:03:00.3]} 2. Nf3 {[%clk 0:02:59.6]}
2... Nf6 {[%clk 0:03:00.4]} 3. Bg5 {[%clk 0:03:00.1]} 3... Ne4 {[%clk
0:03:00.3]} 4. Bf4 {[%clk 0:03:00.2]} 4... c5 {[%clk 0:03:00.4]} 5. e3 {[%clk
0:03:00.1]} 5... Nc6 {[%clk 0:03:00.9]} 6. c3 {[%clk 0:02:59.9]} 6... e6 {[%clk
0:02:59.5]} 7. Nbd2 {[%clk 0:02:59.1]} 7... Be7 {[%clk 0:02:58]} 8. Nxe4 {[%clk
0:02:58.3]} 8... dxe4 {[%clk 0:02:57.9]} 9. Nd2 {[%clk 0:02:57.4]} 9... cxd4
{[%clk 0:02:55.8]} 10. exd4 {[%clk 0:02:52]} 10... f5 {[%clk 0:02:48.4]} 11.
Qh5+ {[%clk 0:02:50.8]} 11... g6 {[%clk 0:02:46.9]} 12. Qh6 {[%clk 0:02:44]}
12... Bf8 {[%clk 0:02:46.7]} 13. Qg5 {[%clk 0:02:39]} 13... Be7 {[%clk
0:02:41.8]} 14. Qh6 {[%clk 0:02:39.2]} 14... Bf6 {[%clk 0:02:16.4]} 15. Bb5
{[%clk 0:02:36.4]} 15... Kf7 {[%clk 0:02:12.2]} 16. Bxc6 {[%clk 0:02:29.6]}
16... bxc6 {[%clk 0:02:12.4]} 17. Be5 {[%clk 0:02:27.2]} 17... Bxe5 {[%clk
0:02:02.4]} 18. dxe5 {[%clk 0:02:27]} 18... Ba6 {[%clk 0:01:57.3]} 19. O-O-O
{[%clk 0:02:25.7]} 19... Bd3 {[%clk 0:01:54.5]} 20. Rde1 {[%clk 0:02:26.1]}
20... Qd5 {[%clk 0:01:51.2]} 21. Nb3 {[%clk 0:02:17.1]} 21... Qxe5 {[%clk
0:01:46.8]} 22. f3 {[%clk 0:02:16.2]} 22... Qg7 {[%clk 0:01:32.9]} 23. Qf4
{[%clk 0:02:12.7]} 23... e5 {[%clk 0:01:29.8]} 24. Qh4 {[%clk 0:02:06.3]} 24...
g5 {[%clk 0:01:16]} 25. Qf2 {[%clk 0:02:04]} 25... Kg6 {[%clk 0:00:59]} 26. h4
{[%clk 0:01:59.5]} 26... h6 {[%clk 0:00:58]} 27. fxe4 {[%clk 0:01:54.7]} 27...
Bxe4 {[%clk 0:00:57.6]} 28. Nc5 {[%clk 0:01:54.8]} 28... Bd5 {[%clk 0:00:54.1]}
29. h5+ {[%clk 0:01:51.7]} 29... Kf6 {[%clk 0:00:51.3]} 30. g4 {[%clk
0:01:46.7]} 30... f4 {[%clk 0:00:51.3]} 31. Qc2 {[%clk 0:01:44.8]} 31... Qh7
{[%clk 0:00:48.3]} 32. Ne4+ {[%clk 0:01:34.5]} 32... Ke7 {[%clk 0:00:48.1]} 33.
c4 {[%clk 0:01:31]} 33... Be6 {[%clk 0:00:47.8]} 34. Rhg1 {[%clk 0:01:24.5]}
34... Rad8 {[%clk 0:00:47.9]} 35. b3 {[%clk 0:01:19.1]} 35... Rd4 {[%clk
0:00:44.5]} 36. Nc5 {[%clk 0:01:03.5]} 36... Qxc2+ {[%clk 0:00:43.3]} 37. Kxc2
{[%clk 0:01:03.6]} 37... Kd6 {[%clk 0:00:33.2]} 38. Ne4+ {[%clk 0:00:56.2]}
38... Ke7 {[%clk 0:00:24.8]} 39. Nc5 {[%clk 0:00:56.2]} 39... Kd6 {[%clk
0:00:21.8]} 40. Ne4+ {[%clk 0:00:55.8]} 40... Kc7 {[%clk 0:00:19.5]} 41. Nc5
{[%clk 0:00:54.8]} 41... Bxc4 {[%clk 0:00:19.3]} 42. Rxe5 {[%clk 0:00:52.9]}
42... Bd5 {[%clk 0:00:17.9]} 43. Kc3 {[%clk 0:00:44.2]} 43... f3 {[%clk
0:00:04]} 44. Kxd4 {[%clk 0:00:43.3]} 44... f2 {[%clk 0:00:04.6]} 45. Rf1 {[%clk
0:00:42.2]} 45... Rf8 {[%clk 0:00:04.9]} 46. Ne6+ {[%clk 0:00:40.4]} 46... Bxe6
{[%clk 0:00:04.8]} 47. Rxe6 {[%clk 0:00:40.9]} 47... Kd7 {[%clk 0:00:04.5]} 48.
Re4 {[%clk 0:00:37.3]} 48... Kd6 {[%clk 0:00:04.2]} 49. Ke3 {[%clk 0:00:36.8]}
49... Kd5 {[%clk 0:00:03.6]} 50. Rc4 {[%clk 0:00:30.6]} 50... Ke5 {[%clk
0:00:04.1]} 51. Rxf2 {[%clk 0:00:30]} 51... Rd8 {[%clk 0:00:04.1]} 52. Rf5+
{[%clk 0:00:29.4]} 52... Ke6 {[%clk 0:00:03.7]} 53. Rxc6+ {[%clk 0:00:28.7]}
53... Ke7 {[%clk 0:00:03]} 54. Rxh6 {[%clk 0:00:28.7]} 54... Rc8 {[%clk
0:00:02.5]} 55. Rxg5 {[%clk 0:00:27.3]} 55... Rc1 {[%clk 0:00:02.3]} 56. Rg7+
{[%clk 0:00:25.5]} 56... Kf8 {[%clk 0:00:02.6]} 57. Rxa7 {[%clk 0:00:26]} 57...
Re1+ {[%clk 0:00:03.1]} 58. Kf4 {[%clk 0:00:25.6]} 58... Kg8 {[%clk 0:00:03.1]}
59. Kg5 {[%clk 0:00:25.5]} 59... Rc1 {[%clk 0:00:03.4]} 60. Rd6 {[%clk
0:00:23.5]} 60... Rc5+ {[%clk 0:00:03.7]} 61. Kg6 {[%clk 0:00:22.5]} 61... Rc8
{[%clk 0:00:04.4]} 62. h6 {[%clk 0:00:21.1]} 62... Kh8 {[%clk 0:00:04.8]} 63.
Rdd7 {[%clk 0:00:20.3]} 63... Rg8+ {[%clk 0:00:04.6]} 64. Kh5 {[%clk 0:00:20.5]}
64... Rg5+ {[%clk 0:00:01.5]} 65. Kxg5 {[%clk 0:00:19.5]} 65... Kg8 {[%clk
0:00:02.2]} 66. Rd8# {[%clk 0:00:19.1]} 1-0